[Event "*** SCC Grand Prix: Titled Tuesday Blitz"]
[Site "Chess.com"]
[Date "2020.07.14"]
[Round "6"]
[White "CrushingKings"]
[Black "Atanejhad"]
[Result "0-1"]
[WhiteElo "2544"]
[BlackElo "2406"]
[TimeControl "180+1"]
[EndTime "11:07:35 PDT"]
[Termination "Atanejhad won on time"]

1. e4 {[%clk 0:03:00.9]} 1... e5 {[%clk 0:02:59.1]} 2. Nf3 {[%clk 0:03:00]} 2...
Nc6 {[%clk 0:02:59.6]} 3. Bc4 {[%clk 0:03:00.6]} 3... Bc5 {[%clk 0:02:58.9]} 4.
c3 {[%clk 0:03:00.1]} 4... Nf6 {[%clk 0:02:58.7]} 5. d3 {[%clk 0:03:00.8]} 5...
O-O {[%clk 0:02:56.9]} 6. O-O {[%clk 0:03:00.5]} 6... d6 {[%clk 0:02:54.1]} 7.
Bb3 {[%clk 0:02:59.7]} 7... a6 {[%clk 0:02:53.8]} 8. h3 {[%clk 0:02:58.9]} 8...
Re8 {[%clk 0:02:54]} 9. Nbd2 {[%clk 0:02:59.3]} 9... Be6 {[%clk 0:02:51.5]} 10.
Bc2 {[%clk 0:02:59.4]} 10... d5 {[%clk 0:02:51.3]} 11. Qe2 {[%clk 0:02:59.2]}
11... d4 {[%clk 0:02:47.2]} 12. c4 {[%clk 0:02:58.6]} 12... b5 {[%clk
0:02:46.6]} 13. b3 {[%clk 0:02:54.7]} 13... Nh5 {[%clk 0:02:38.1]} 14. Nb1
{[%clk 0:02:38.9]} 14... Nf4 {[%clk 0:02:27.3]} 15. Bxf4 {[%clk 0:02:27.9]}
15... exf4 {[%clk 0:02:28.2]} 16. a3 {[%clk 0:02:28]} 16... bxc4 {[%clk
0:02:24.5]} 17. dxc4 {[%clk 0:02:23.6]} 17... a5 {[%clk 0:02:03.2]} 18. e5
{[%clk 0:02:23.3]} 18... Ne7 {[%clk 0:01:16.9]} 19. Nbd2 {[%clk 0:02:22]} 19...
Ng6 {[%clk 0:01:10.2]} 20. Rfd1 {[%clk 0:01:33.1]} 20... Be7 {[%clk 0:01:05.5]}
21. Qe4 {[%clk 0:01:33]} 21... c5 {[%clk 0:01:04.7]} 22. Ne1 {[%clk 0:00:36.5]}
22... f5 {[%clk 0:00:44.4]} 23. Qe2 {[%clk 0:00:30.2]} 23... Nh4 {[%clk
0:00:31.9]} 24. Nd3 {[%clk 0:00:25.4]} 24... g5 {[%clk 0:00:31.3]} 25. Nf3
{[%clk 0:00:18]} 25... Ng6 {[%clk 0:00:28.1]} 26. b4 {[%clk 0:00:13.9]} 26...
axb4 {[%clk 0:00:27.8]} 27. axb4 {[%clk 0:00:13.6]} 27... Rxa1 {[%clk
0:00:28.5]} 28. Rxa1 {[%clk 0:00:14.3]} 28... cxb4 {[%clk 0:00:29]} 29. c5
{[%clk 0:00:13.4]} 29... Qd5 {[%clk 0:00:23.4]} 30. Nxb4 {[%clk 0:00:11.7]}
30... Qxc5 {[%clk 0:00:22.3]} 31. Nd3 {[%clk 0:00:11.5]} 31... Qc3 {[%clk
0:00:21.7]} 32. Ra7 {[%clk 0:00:09.5]} 32... h6 {[%clk 0:00:20.7]} 33. Ra6
{[%clk 0:00:07.5]} 33... Bf8 {[%clk 0:00:16.8]} 34. Qd1 {[%clk 0:00:07]} 34...
Kf7 {[%clk 0:00:16.3]} 35. Qb1 {[%clk 0:00:04]} 35... Rc8 {[%clk 0:00:15]} 36.
Rxe6 {[%clk 0:00:02.9]} 36... Kxe6 {[%clk 0:00:12.5]} 37. Nfe1 {[%clk 0:00:03]}
37... Kf7 {[%clk 0:00:09.7]} 38. Qb7+ {[%clk 0:00:01.8]} 38... Qc7 {[%clk
0:00:09.7]} 39. Qd5+ {[%clk 0:00:02]} 39... Kg7 {[%clk 0:00:10]} 40. Qxd4 {[%clk
0:00:02.1]} 40... Bc5 {[%clk 0:00:08.8]} 41. Qb2 {[%clk 0:00:01.2]} 41... Qb6
{[%clk 0:00:08.4]} 0-1

[Event "*** SCC Grand Prix: Titled Tuesday Blitz"]
[Site "Chess.com"]
[Date "2020.07.14"]
[Round "6"]
[White "benko_008"]
[Black "Kotofeyca"]
[Result "1/2-1/2"]
[WhiteElo "2440"]
[BlackElo "2316"]
[TimeControl "180+1"]
[EndTime "11:07:35 PDT"]
[Termination "Game drawn by repetition"]

1. Nf3 {[%clk 0:03:00.9]} 1... d5 {[%clk 0:02:59.7]} 2. d4 {[%clk 0:03:00.1]}
2... c6 {[%clk 0:02:59.6]} 3. Bf4 {[%clk 0:02:58.2]} 3... Bg4 {[%clk 0:02:59.3]}
4. e3 {[%clk 0:02:56.9]} 4... Nd7 {[%clk 0:02:58.6]} 5. h3 {[%clk 0:02:54.6]}
5... Bh5 {[%clk 0:02:57.6]} 6. Be2 {[%clk 0:02:51.7]} 6... e6 {[%clk 0:02:57.3]}
7. O-O {[%clk 0:02:51.4]} 7... Ngf6 {[%clk 0:02:57.4]} 8. c4 {[%clk 0:02:51.3]}
8... Be7 {[%clk 0:02:53.9]} 9. Qb3 {[%clk 0:02:50.4]} 9... Qb6 {[%clk
0:02:51.6]} 10. c5 {[%clk 0:02:50.3]} 10... Qxb3 {[%clk 0:02:51.4]} 11. axb3
{[%clk 0:02:51.2]} 11... a6 {[%clk 0:02:50]} 12. Nc3 {[%clk 0:02:50.4]} 12...
Ne4 {[%clk 0:02:42.7]} 13. b4 {[%clk 0:02:40.7]} 13... Bxf3 {[%clk 0:02:27]} 14.
Bxf3 {[%clk 0:02:27.8]} 14... Nd2 {[%clk 0:02:26.4]} 15. Rfd1 {[%clk 0:02:21.9]}
15... Nxf3+ {[%clk 0:02:26.1]} 16. gxf3 {[%clk 0:02:22.8]} 16... Rc8 {[%clk
0:02:26.2]} 17. Nb1 {[%clk 0:02:16.4]} 17... Bd8 {[%clk 0:02:22.9]} 18. Nd2
{[%clk 0:02:13.8]} 18... f6 {[%clk 0:02:21.2]} 19. e4 {[%clk 0:01:56.4]} 19...
Kf7 {[%clk 0:02:13.8]} 20. Re1 {[%clk 0:01:55.1]} 20... Bc7 {[%clk 0:02:08.3]}
21. Bxc7 {[%clk 0:01:52.9]} 21... Rxc7 {[%clk 0:02:08.5]} 22. Nb3 {[%clk
0:01:49.8]} 22... Re8 {[%clk 0:01:59.4]} 23. Na5 {[%clk 0:01:47.1]} 23... f5
{[%clk 0:01:56.8]} 24. Rad1 {[%clk 0:01:45.6]} 24... Nf6 {[%clk 0:01:54.4]} 25.
exf5 {[%clk 0:01:39.9]} 25... exf5 {[%clk 0:01:54]} 26. Rxe8 {[%clk 0:01:39.5]}
26... Nxe8 {[%clk 0:01:49.4]} 27. Re1 {[%clk 0:01:40.4]} 27... g6 {[%clk
0:01:47.2]} 28. Kf1 {[%clk 0:01:25.7]} 28... Ng7 {[%clk 0:01:46.9]} 29. Ke2
{[%clk 0:01:23.9]} 29... Re7+ {[%clk 0:01:23.3]} 30. Kd2 {[%clk 0:01:22.7]}
30... Rxe1 {[%clk 0:01:24.2]} 31. Kxe1 {[%clk 0:01:22.9]} 31... Ne6 {[%clk
0:01:25.1]} 32. Nxb7 {[%clk 0:01:21.5]} 32... Nxd4 {[%clk 0:01:24.9]} 33. Kd2
{[%clk 0:01:12.2]} 33... Ke7 {[%clk 0:01:18.4]} 34. f4 {[%clk 0:01:08.8]} 34...
Kd7 {[%clk 0:01:07.7]} 35. Kd3 {[%clk 0:01:03.8]} 35... Ne6 {[%clk 0:00:46.5]}
36. Ke3 {[%clk 0:01:00.9]} 36... d4+ {[%clk 0:00:32.1]} 37. Kd3 {[%clk
0:00:55.3]} 37... Nxf4+ {[%clk 0:00:31.5]} 38. Kxd4 {[%clk 0:00:56.1]} 38...
Nxh3 {[%clk 0:00:32.2]} 39. f3 {[%clk 0:00:51.8]} 39... Ng5 {[%clk 0:00:25.6]}
40. f4 {[%clk 0:00:48.3]} 40... Nf7 {[%clk 0:00:25.7]} 41. Na5 {[%clk
0:00:46.7]} 41... h6 {[%clk 0:00:22.5]} 42. Nc4 {[%clk 0:00:46.2]} 42... g5
{[%clk 0:00:22.8]} 43. Ne3 {[%clk 0:00:41.3]} 43... Ke6 {[%clk 0:00:22.2]} 44.
Ng2 {[%clk 0:00:39]} 44... Kf6 {[%clk 0:00:19]} 45. Ke3 {[%clk 0:00:36.6]} 45...
Nd8 {[%clk 0:00:19.4]} 46. Ne1 {[%clk 0:00:29.7]} 46... Ne6 {[%clk 0:00:19.8]}
47. fxg5+ {[%clk 0:00:25.5]} 47... hxg5 {[%clk 0:00:18.7]} 48. Nf3 {[%clk
0:00:26.4]} 48... g4 {[%clk 0:00:18.6]} 49. Nd2 {[%clk 0:00:25.5]} 49... Ke5
{[%clk 0:00:18.7]} 50. Nc4+ {[%clk 0:00:25.3]} 50... Kd5 {[%clk 0:00:19.2]} 51.
Nb6+ {[%clk 0:00:25.4]} 51... Ke5 {[%clk 0:00:19]} 52. Nd7+ {[%clk 0:00:25.3]}
52... Kd5 {[%clk 0:00:18]} 53. Nb6+ {[%clk 0:00:24.2]} 53... Ke5 {[%clk
0:00:17.7]} 54. Nd7+ {[%clk 0:00:24.1]} 54... Kd5 {[%clk 0:00:16.4]} 55. Nb6+
{[%clk 0:00:21.5]} 1/2-1/2

[Event "*** SCC Grand Prix: Titled Tuesday Blitz"]
[Site "Chess.com"]
[Date "2020.07.14"]
[Round "6"]
[White "124chess"]
[Black "FontVella8"]
[Result "1-0"]
[WhiteElo "2690"]
[BlackElo "2516"]
[TimeControl "180+1"]
[EndTime "11:07:42 PDT"]
[Termination "124chess won on time"]

1. d4 {[%clk 0:03:00.9]} 1... Nf6 {[%clk 0:02:53.2]} 2. c4 {[%clk 0:03:01.3]}
2... b6 {[%clk 0:02:53.4]} 3. Nc3 {[%clk 0:03:00.9]} 3... Bb7 {[%clk 0:02:54]}
4. a3 {[%clk 0:02:57.4]} 4... g6 {[%clk 0:02:53.9]} 5. d5 {[%clk 0:02:55.9]}
5... Bg7 {[%clk 0:02:54.1]} 6. e4 {[%clk 0:02:56.2]} 6... d6 {[%clk 0:02:54.3]}
7. Nf3 {[%clk 0:02:56.4]} 7... O-O {[%clk 0:02:54.5]} 8. Be2 {[%clk 0:02:56.6]}
8... e5 {[%clk 0:02:54.8]} 9. O-O {[%clk 0:02:53.1]} 9... Nbd7 {[%clk
0:02:54.7]} 10. b4 {[%clk 0:02:52.9]} 10... Nh5 {[%clk 0:02:49]} 11. Ne1 {[%clk
0:02:48.2]} 11... Nf4 {[%clk 0:02:41]} 12. Nd3 {[%clk 0:02:48.4]} 12... Nxe2+
{[%clk 0:02:38.7]} 13. Qxe2 {[%clk 0:02:49.3]} 13... f5 {[%clk 0:02:39]} 14. f3
{[%clk 0:02:41.8]} 14... Qe7 {[%clk 0:02:12]} 15. Be3 {[%clk 0:02:41.4]} 15...
f4 {[%clk 0:02:08.1]} 16. Bf2 {[%clk 0:02:41.2]} 16... g5 {[%clk 0:02:08.5]} 17.
c5 {[%clk 0:02:40]} 17... bxc5 {[%clk 0:02:06.7]} 18. bxc5 {[%clk 0:02:40.9]}
18... Ba6 {[%clk 0:02:07]} 19. cxd6 {[%clk 0:02:13.6]} 19... cxd6 {[%clk
0:02:06.4]} 20. Rfc1 {[%clk 0:02:13.5]} 20... h5 {[%clk 0:01:59.4]} 21. Qd1
{[%clk 0:02:08.1]} 21... g4 {[%clk 0:01:13.1]} 22. Nb4 {[%clk 0:02:07.3]} 22...
Bc8 {[%clk 0:01:02.4]} 23. fxg4 {[%clk 0:02:03.7]} 23... f3 {[%clk 0:00:56.9]}
24. gxf3 {[%clk 0:01:30.5]} 24... hxg4 {[%clk 0:00:47.6]} 25. fxg4 {[%clk
0:01:31.4]} 25... Bh6 {[%clk 0:00:38.5]} 26. Rc2 {[%clk 0:01:22.3]} 26... Nc5
{[%clk 0:00:37.8]} 27. Nc6 {[%clk 0:01:10.8]} 27... Qg7 {[%clk 0:00:34.8]} 28.
Bxc5 {[%clk 0:00:39.7]} 28... dxc5 {[%clk 0:00:22]} 29. Rg2 {[%clk 0:00:38.9]}
29... Be3+ {[%clk 0:00:19]} 30. Kh1 {[%clk 0:00:38.6]} 30... Rf4 {[%clk
0:00:15]} 31. d6 {[%clk 0:00:26.3]} 31... Bd4 {[%clk 0:00:13.5]} 32. Nd5 {[%clk
0:00:25.1]} 32... Rxe4 {[%clk 0:00:08.9]} 33. g5 {[%clk 0:00:21.2]} 33... Rh4
{[%clk 0:00:07.8]} 34. Nce7+ {[%clk 0:00:17.1]} 34... Kh8 {[%clk 0:00:06.9]} 35.
Nxc8 {[%clk 0:00:15.7]} 35... Rxc8 {[%clk 0:00:06.9]} 36. Rb1 {[%clk 0:00:15.3]}
36... Rd8 {[%clk 0:00:04.7]} 37. Nf6 {[%clk 0:00:11.8]} 37... e4 {[%clk
0:00:04.6]} 38. d7 {[%clk 0:00:08.2]} 38... Bxf6 {[%clk 0:00:03.9]} 39. gxf6
{[%clk 0:00:09.1]} 39... Qxf6 {[%clk 0:00:04.1]} 40. Qd5 {[%clk 0:00:08.9]}
40... Rh7 {[%clk 0:00:02.3]} 41. Qxe4 {[%clk 0:00:08.1]} 41... Rhxd7 {[%clk
0:00:02.1]} 42. Rbg1 {[%clk 0:00:08.5]} 42... Rh7 {[%clk 0:00:02]} 43. Rg3
{[%clk 0:00:07.7]} 43... Qf7 {[%clk 0:00:02]} 44. Qe5+ {[%clk 0:00:07.5]} 44...
Rg7 {[%clk 0:00:01.8]} 45. Rxg7 {[%clk 0:00:07.5]} 1-0

[Event "*** SCC Grand Prix: Titled Tuesday Blitz"]
[Site "Chess.com"]
[Date "2020.07.14"]
[Round "6"]
[White "qingaunlee"]
[Black "Onegust"]
[Result "0-1"]
[WhiteElo "2341"]
[BlackElo "2586"]
[TimeControl "180+1"]
[EndTime "11:07:43 PDT"]
[Termination "Onegust won by resignation"]

1. e4 {[%clk 0:03:00.9]} 1... c5 {[%clk 0:02:59.2]} 2. Nf3 {[%clk 0:03:00.5]}
2... d6 {[%clk 0:02:59.5]} 3. d4 {[%clk 0:03:00.1]} 3... cxd4 {[%clk 0:03:00.4]}
4. Nxd4 {[%clk 0:03:00]} 4... Nf6 {[%clk 0:03:01.1]} 5. Nc3 {[%clk 0:02:59.9]}
5... a6 {[%clk 0:03:01.7]} 6. Bg5 {[%clk 0:03:00.1]} 6... Nbd7 {[%clk
0:03:01.2]} 7. f4 {[%clk 0:02:59.4]} 7... h6 {[%clk 0:03:01.7]} 8. Bh4 {[%clk
0:02:56.7]} 8... Qc7 {[%clk 0:03:00.8]} 9. Qf3 {[%clk 0:02:53.3]} 9... g5 {[%clk
0:03:00.3]} 10. fxg5 {[%clk 0:02:49.3]} 10... hxg5 {[%clk 0:03:01.2]} 11. Bxg5
{[%clk 0:02:47.9]} 11... Qc5 {[%clk 0:03:01.5]} 12. Be3 {[%clk 0:02:40.4]} 12...
Ne5 {[%clk 0:03:01.8]} 13. Qd1 {[%clk 0:02:31.5]} 13... Neg4 {[%clk 0:02:54.8]}
14. Bg1 {[%clk 0:02:27.1]} 14... Qb4 {[%clk 0:02:12]} 15. a3 {[%clk 0:02:26.3]}
15... Qa5 {[%clk 0:01:52.2]} 16. Nb3 {[%clk 0:02:11.8]} 16... Qe5 {[%clk
0:01:40.6]} 17. Qd4 {[%clk 0:01:37.6]} 17... Qg5 {[%clk 0:01:30]} 18. Nd5 {[%clk
0:01:25.1]} 18... Nxd5 {[%clk 0:01:11.6]} 19. Qxd5 {[%clk 0:00:42.1]} 19... Qf4
{[%clk 0:01:04]} 20. Be2 {[%clk 0:00:28.6]} 20... Bg7 {[%clk 0:00:56.9]} 21. g3
{[%clk 0:00:22.5]} 21... Qh6 {[%clk 0:00:49.2]} 22. Bd4 {[%clk 0:00:21.3]} 22...
Ne3 {[%clk 0:00:21.4]} 23. Bxg7 {[%clk 0:00:14.3]} 23... Qxg7 {[%clk 0:00:10.8]}
24. Qd3 {[%clk 0:00:13.5]} 24... Ng4 {[%clk 0:00:04.4]} 25. O-O-O {[%clk
0:00:12.1]} 25... Nf2 {[%clk 0:00:04.1]} 26. Qc4 {[%clk 0:00:12.1]} 26... Nxd1
{[%clk 0:00:02.9]} 27. Rxd1 {[%clk 0:00:12.7]} 27... Rxh2 {[%clk 0:00:02.3]} 28.
Qa4+ {[%clk 0:00:12.4]} 28... Bd7 {[%clk 0:00:02.5]} 29. Qc4 {[%clk 0:00:10.4]}
29... Rc8 {[%clk 0:00:02.8]} 30. Qd3 {[%clk 0:00:10.2]} 30... Qh6+ {[%clk
0:00:03.2]} 31. Kb1 {[%clk 0:00:10]} 31... Rg2 {[%clk 0:00:03.7]} 32. Bf3 {[%clk
0:00:09.8]} 32... Rf2 {[%clk 0:00:03.2]} 33. Rh1 {[%clk 0:00:08.6]} 33... Qf6
{[%clk 0:00:02.8]} 34. Bd1 {[%clk 0:00:07.7]} 34... e5 {[%clk 0:00:03.4]} 35.
Qd5 {[%clk 0:00:07.3]} 35... Ke7 {[%clk 0:00:03.8]} 36. Qxb7 {[%clk 0:00:07.4]}
36... Rf1 {[%clk 0:00:04.2]} 37. Rxf1 {[%clk 0:00:06.3]} 37... Qxf1 {[%clk
0:00:05.1]} 38. Ka2 {[%clk 0:00:06.1]} 38... Qxd1 {[%clk 0:00:05.2]} 39. Na5
{[%clk 0:00:06.6]} 39... Qxc2 {[%clk 0:00:05.1]} 40. Qa7 {[%clk 0:00:05.7]}
40... Qc7 {[%clk 0:00:05.4]} 41. Qe3 {[%clk 0:00:05.2]} 41... Be6+ {[%clk
0:00:05.6]} 42. Nb3 {[%clk 0:00:04.2]} 42... Qb7 {[%clk 0:00:04.7]} 43. Qg5+
{[%clk 0:00:04]} 43... Kd7 {[%clk 0:00:04.6]} 0-1

[Event "*** SCC Grand Prix: Titled Tuesday Blitz"]
[Site "Chess.com"]
[Date "2020.07.14"]
[Round "6"]
[White "sasko1234"]
[Black "ClassyEl"]
[Result "0-1"]
[WhiteElo "2398"]
[BlackElo "2539"]
[TimeControl "180+1"]
[EndTime "11:07:46 PDT"]
[Termination "ClassyEl won by resignation"]

1. b3 {[%clk 0:03:00.9]} 1... a5 {[%clk 0:02:59.2]} 2. a4 {[%clk 0:02:49.3]}
2... Nf6 {[%clk 0:02:56.6]} 3. Bb2 {[%clk 0:02:49.4]} 3... g6 {[%clk 0:02:55.7]}
4. g4 {[%clk 0:02:49.4]} 4... Bg7 {[%clk 0:02:55.5]} 5. g5 {[%clk 0:02:49.4]}
5... Nh5 {[%clk 0:02:55.7]} 6. Bxg7 {[%clk 0:02:49.4]} 6... Nxg7 {[%clk
0:02:56.1]} 7. Nc3 {[%clk 0:02:49]} 7... e5 {[%clk 0:02:52.2]} 8. d4 {[%clk
0:02:48.1]} 8... Qxg5 {[%clk 0:02:34.8]} 9. Nf3 {[%clk 0:02:47.5]} 9... Qd8
{[%clk 0:02:32.9]} 10. dxe5 {[%clk 0:02:46.8]} 10... O-O {[%clk 0:02:27.5]} 11.
Qd2 {[%clk 0:02:31.7]} 11... Nc6 {[%clk 0:02:26]} 12. Nd5 {[%clk 0:02:25]} 12...
f5 {[%clk 0:01:31.1]} 13. Qh6 {[%clk 0:01:59.7]} 13... Ne6 {[%clk 0:01:13.5]}
14. h4 {[%clk 0:01:41.6]} 14... d6 {[%clk 0:00:42.2]} 15. h5 {[%clk 0:01:17.2]}
15... g5 {[%clk 0:00:41.7]} 16. Nf6+ {[%clk 0:01:16.3]} 16... Rxf6 {[%clk
0:00:41.8]} 17. exf6 {[%clk 0:01:16.5]} 17... Qf8 {[%clk 0:00:34.5]} 18. Qxf8+
{[%clk 0:01:11.7]} 18... Kxf8 {[%clk 0:00:34.9]} 19. O-O-O {[%clk 0:01:02.8]}
19... Kf7 {[%clk 0:00:35.2]} 20. e3 {[%clk 0:00:55.3]} 20... Kxf6 {[%clk
0:00:33.8]} 21. Nd4 {[%clk 0:00:55.1]} 21... Ncxd4 {[%clk 0:00:20.4]} 22. exd4
{[%clk 0:00:54.8]} 22... h6 {[%clk 0:00:18.6]} 23. c3 {[%clk 0:00:47.3]} 23...
Bd7 {[%clk 0:00:17.3]} 24. Bd3 {[%clk 0:00:46.7]} 24... Nf4 {[%clk 0:00:16.6]}
25. Bc2 {[%clk 0:00:43.4]} 25... Bc6 {[%clk 0:00:16.1]} 26. Rhe1 {[%clk
0:00:40.3]} 26... Bf3 {[%clk 0:00:11.6]} 27. Rd2 {[%clk 0:00:40.2]} 27... Nxh5
{[%clk 0:00:11.7]} 28. Bd1 {[%clk 0:00:35.6]} 28... Bxd1 {[%clk 0:00:11.8]} 29.
Kxd1 {[%clk 0:00:32.9]} 29... Nf4 {[%clk 0:00:12.4]} 30. Rh1 {[%clk 0:00:30.7]}
30... h5 {[%clk 0:00:12.3]} 31. Kc2 {[%clk 0:00:27.8]} 31... g4 {[%clk
0:00:12.7]} 32. Rdd1 {[%clk 0:00:27.8]} 32... h4 {[%clk 0:00:12.8]} 33. Rde1
{[%clk 0:00:27.9]} 33... h3 {[%clk 0:00:11.6]} 34. Kd2 {[%clk 0:00:27.6]} 34...
Rg8 {[%clk 0:00:08.2]} 35. c4 {[%clk 0:00:26.5]} 35... g3 {[%clk 0:00:07.5]} 36.
fxg3 {[%clk 0:00:26.1]} 36... Rxg3 {[%clk 0:00:06.2]} 37. Ref1 {[%clk
0:00:25.6]} 37... Kg5 {[%clk 0:00:04.9]} 38. Kc2 {[%clk 0:00:14.8]} 38... Kg4
{[%clk 0:00:02.7]} 39. d5 {[%clk 0:00:15]} 39... Ng2 {[%clk 0:00:01.7]} 40. c5
{[%clk 0:00:14.9]} 40... Ne3+ {[%clk 0:00:01.7]} 41. Kd2 {[%clk 0:00:15]} 41...
Nxf1+ {[%clk 0:00:02.6]} 42. Rxf1 {[%clk 0:00:15.1]} 42... dxc5 {[%clk
0:00:03.3]} 43. d6 {[%clk 0:00:15]} 43... cxd6 {[%clk 0:00:03.2]} 44. Ke2 {[%clk
0:00:14.3]} 44... h2 {[%clk 0:00:03.5]} 0-1

[Event "*** SCC Grand Prix: Titled Tuesday Blitz"]
[Site "Chess.com"]
[Date "2020.07.14"]
[Round "6"]
[White "Lion-Al-Messi"]
[Black "tk22h"]
[Result "0-1"]
[WhiteElo "2424"]
[BlackElo "2313"]
[TimeControl "180+1"]
[EndTime "11:07:46 PDT"]
[Termination "tk22h won on time"]

1. e4 {[%clk 0:03:00.9]} 1... e5 {[%clk 0:02:59.3]} 2. Nf3 {[%clk 0:03:00.3]}
2... Nc6 {[%clk 0:02:59.4]} 3. Bb5 {[%clk 0:02:59.4]} 3... a6 {[%clk 0:02:58.6]}
4. Ba4 {[%clk 0:02:58.8]} 4... Nf6 {[%clk 0:02:58.1]} 5. O-O {[%clk 0:02:57.4]}
5... Be7 {[%clk 0:02:57.9]} 6. Qe2 {[%clk 0:02:57]} 6... O-O {[%clk 0:02:54.9]}
7. c3 {[%clk 0:02:55]} 7... b5 {[%clk 0:02:54.6]} 8. Bc2 {[%clk 0:02:54.2]} 8...
d6 {[%clk 0:02:51.4]} 9. h3 {[%clk 0:02:51.4]} 9... h6 {[%clk 0:02:50.5]} 10. d4
{[%clk 0:02:50.7]} 10... Re8 {[%clk 0:02:43.3]} 11. Nbd2 {[%clk 0:02:43.6]}
11... Bb7 {[%clk 0:02:42.9]} 12. b3 {[%clk 0:02:38.1]} 12... exd4 {[%clk
0:02:42.3]} 13. Nxd4 {[%clk 0:02:37]} 13... Nxd4 {[%clk 0:02:40.7]} 14. cxd4
{[%clk 0:02:36.3]} 14... c5 {[%clk 0:02:40.9]} 15. Bb2 {[%clk 0:02:34.6]} 15...
cxd4 {[%clk 0:02:39.7]} 16. Bxd4 {[%clk 0:02:35.5]} 16... Rc8 {[%clk 0:02:39.2]}
17. Bd3 {[%clk 0:02:34.5]} 17... Nd7 {[%clk 0:02:38.2]} 18. Rae1 {[%clk
0:02:31.2]} 18... Bf6 {[%clk 0:02:37.2]} 19. Be3 {[%clk 0:02:30.4]} 19... Nc5
{[%clk 0:02:36.4]} 20. f4 {[%clk 0:02:05.8]} 20... Nxe4 {[%clk 0:02:28.4]} 21.
Nxe4 {[%clk 0:01:43.3]} 21... Bxe4 {[%clk 0:02:27.4]} 22. Bf2 {[%clk 0:01:32.9]}
22... d5 {[%clk 0:02:16.4]} 23. Qd1 {[%clk 0:00:54.3]} 23... Bxd3 {[%clk
0:01:54.1]} 24. Qxd3 {[%clk 0:00:55.2]} 24... Rxe1 {[%clk 0:01:52.5]} 25. Rxe1
{[%clk 0:00:54.9]} 25... Qd7 {[%clk 0:01:51.9]} 26. Rd1 {[%clk 0:00:54.4]} 26...
Rc3 {[%clk 0:01:38.9]} 27. Qxd5 {[%clk 0:00:52.9]} 27... Qxd5 {[%clk 0:01:39.8]}
28. Rxd5 {[%clk 0:00:53.1]} 28... Rc1+ {[%clk 0:01:40]} 29. Kh2 {[%clk
0:00:52.4]} 29... Rc2 {[%clk 0:01:40.4]} 30. Bc5 {[%clk 0:00:43.6]} 30... Rxa2
{[%clk 0:01:37.7]} 31. Rd6 {[%clk 0:00:23.6]} 31... a5 {[%clk 0:01:28.6]} 32.
Ra6 {[%clk 0:00:22.5]} 32... a4 {[%clk 0:01:28]} 33. bxa4 {[%clk 0:00:21.3]}
33... Rxa4 {[%clk 0:01:24.4]} 34. Rb6 {[%clk 0:00:19.8]} 34... Rxf4 {[%clk
0:01:18]} 35. Rxb5 {[%clk 0:00:19.2]} 35... Kh7 {[%clk 0:01:15.6]} 36. Be3
{[%clk 0:00:17.1]} 36... Re4 {[%clk 0:01:14.6]} 37. Bf2 {[%clk 0:00:16.2]} 37...
Be5+ {[%clk 0:01:13.2]} 38. Kg1 {[%clk 0:00:16]} 38... f5 {[%clk 0:01:10.9]} 39.
Rb7 {[%clk 0:00:15.8]} 39... Kg6 {[%clk 0:01:10.1]} 40. Bc5 {[%clk 0:00:14.9]}
40... Bd4+ {[%clk 0:01:08.9]} 41. Bxd4 {[%clk 0:00:14.6]} 41... Rxd4 {[%clk
0:01:09.2]} 42. Rb6+ {[%clk 0:00:15.5]} 42... Kg5 {[%clk 0:01:08.9]} 43. Rb3
{[%clk 0:00:16.4]} 43... f4 {[%clk 0:01:06.9]} 44. Rb5+ {[%clk 0:00:15.7]} 44...
Kg6 {[%clk 0:01:06.6]} 45. Rb6+ {[%clk 0:00:14.9]} 45... Kh5 {[%clk 0:00:59.9]}
46. Rb5+ {[%clk 0:00:11.2]} 46... g5 {[%clk 0:00:59.5]} 47. Rb6 {[%clk
0:00:09.9]} 47... Rd2 {[%clk 0:00:57.4]} 48. Kf1 {[%clk 0:00:08.9]} 48... Kh4
{[%clk 0:00:55.2]} 49. Rxh6+ {[%clk 0:00:03.7]} 49... Kg3 {[%clk 0:00:54.8]} 50.
Rg6 {[%clk 0:00:03.4]} 50... Rf2+ {[%clk 0:00:51.9]} 51. Ke1 {[%clk 0:00:02.8]}
51... Rxg2 {[%clk 0:00:51.2]} 52. Rxg5+ {[%clk 0:00:02.6]} 52... Kf3 {[%clk
0:00:43.8]} 53. Ra5 {[%clk 0:00:02.3]} 53... Rg1+ {[%clk 0:00:43.8]} 54. Kd2
{[%clk 0:00:02.6]} 54... Rh1 {[%clk 0:00:44.3]} 55. Ra3+ {[%clk 0:00:02.7]}
55... Kf2 {[%clk 0:00:44.4]} 56. Ra4 {[%clk 0:00:01.7]} 56... f3 {[%clk
0:00:43.9]} 57. h4 {[%clk 0:00:01.7]} 57... Kg2 {[%clk 0:00:40.7]} 58. Ke3
{[%clk 0:00:01.7]} 58... Re1+ {[%clk 0:00:39.9]} 59. Kd2 {[%clk 0:00:01.2]}
59... Re5 {[%clk 0:00:38]} 0-1